bitfinex/quotes_BTCUSD_20230108
["timestamp","ask_amount","ask_price","bid_price","bid_amount"]
[1673151513584,0.79580297,16949.0,16948.0,2.41738299]
[1673151514124,1.14994162,16949.0,16948.0,2.41738299]
[1673151514648,1.14994162,16949.0,16948.0,1.94745375]
[1673151514899,0.79580297,16949.0,16948.0,1.94745375]
[1673151515411,0.79571056,16949.0,16948.0,1.94745375]
[1673151515921,0.79571056,16949.0,16948.0,2.41738299]
[1673151516174,1.14984895,16949.0,16948.0,2.41738299]
[1673151517658,1.14984895,16949.0,16948.0,1.94745375]
[1673151517894,0.79571056,16949.0,16948.0,1.94745375]
[1673151524030,0.79571056,16949.0,16948.0,2.41738299]
[1673151524270,0.79571056,16949.0,16948.0,2.55524575]
[1673151524521,0.79571056,16949.0,16948.0,3.02517499]
[1673151525949,1.14985657,16949.0,16948.0,3.02517499]
[1673151526694,1.14985657,16949.0,16948.0,1.94745375]
[1673151526973,1.14985216,16949.0,16948.0,2.71738299]
[1673151527233,1.14985216,16949.0,16948.0,1.94745375]
[1673151527995,0.79571056,16949.0,16948.0,1.94745375]
[1673151537614,1.40350256,16949.0,16948.0,1.94745375]
[1673151538431,0.79571056,16949.0,16948.0,1.94745375]
[1673151539145,1.40350256,16949.0,16948.0,1.94745375]
[1673151539429,1.40350256,16949.0,16948.0,1.9473846]
[1673151540480,0.79571056,16949.0,16948.0,1.94751455]
[1673151540791,0.79571056,16949.0,16948.0,1.9473846]
[1673151541239,1.14985894,16949.0,16948.0,1.9473846]
[1673151541492,0.79571056,16949.0,16948.0,1.9473846]
[1673151543454,1.40350256,16949.0,16948.0,1.9473846]
[1673151544701,0.79571056,16949.0,16948.0,1.9473846]
[1673151545206,1.40350256,16949.0,16948.0,1.9473846]
[1673151545668,0.79571056,16949.0,16948.0,1.9473846]
[1673151546721,1.40350256,16949.0,16948.0,1.9473846]
[1673151546943,0.79571056,16949.0,16948.0,1.9473846]
[1673151548471,1.40350256,16949.0,16948.0,1.9473846]
[1673151548722,0.79571056,16949.0,16948.0,1.9473846]
[1673151550643,1.40350256,16949.0,16948.0,1.9473846]
[1673151551152,0.79579314,16949.0,16948.0,1.9473846]
[1673151555384,1.40358514,16949.0,16948.0,1.9473846]
[1673151555610,0.79579314,16949.0,16948.0,1.9473846]
[1673151555844,1.40358514,16949.0,16948.0,1.9473846]
[1673151556958,0.79579314,16949.0,16948.0,1.9473846]
[1673151559917,1.14999505,16949.0,16948.0,1.9473846]
[1673151561194,0.79579314,16949.0,16948.0,1.9473846]
[1673151568262,0.96083169,16949.0,16948.0,1.9473846]
[1673151568973,1.40357145,16949.0,16948.0,1.9473846]
[1673151569238,0.79577945,16949.0,16948.0,1.9473846]
[1673151569753,0.79577945,16949.0,16948.0,1.94751455]
[1673151570000,0.79577945,16949.0,16948.0,1.9473846]
[1673151570254,1.40357145,16949.0,16948.0,1.9473846]
[1673151570515,0.79577945,16949.0,16948.0,1.9473846]
[1673151571035,0.35303969,16949.0,16948.0,1.9473846]
[1673151571396,0.96083169,16949.0,16948.0,1.9473846]
[1673151572832,0.96083169,16949.0,16948.0,1.94729313]
[1673151573598,0.35303969,16949.0,16948.0,1.94729313]
[1673151574112,0.96083169,16949.0,16948.0,1.94729313]
[1673151574366,0.35303969,16949.0,16948.0,1.94729313]
[1673151574620,0.96083169,16949.0,16948.0,1.94729313]
[1673151574871,0.35303969,16949.0,16948.0,1.94729313]
[1673151575136,0.96083169,16949.0,16948.0,1.94729313]
[1673151575385,0.35303969,16949.0,16948.0,1.94729313]
[1673151576612,0.96083169,16949.0,16948.0,1.94729313]
[1673151577129,0.35303969,16949.0,16948.0,1.94729313]
[1673151577671,0.96083169,16949.0,16948.0,1.94729313]
[1673151578189,0.35303969,16949.0,16948.0,1.94729313]
[1673151581658,0.96083169,16949.0,16948.0,1.94729313]
[1673151582203,0.35303969,16949.0,16948.0,1.94729313]
[1673151584596,0.96083169,16949.0,16948.0,1.94729313]
[1673151584853,0.35303969,16949.0,16948.0,1.94729313]
[1673151587154,0.85303969,16949.0,16948.0,1.91399613]
[1673151587404,0.35303969,16949.0,16948.0,1.91399613]
[1673151587670,0.85303969,16949.0,16948.0,1.88071213]
[1673151587892,0.96083169,16949.0,16948.0,1.84742413]
[1673151588145,0.35303969,16949.0,16948.0,1.84742413]
[1673151588412,0.85303969,16949.0,16948.0,1.81414013]
[1673151588672,0.35303969,16949.0,16948.0,1.81414013]
[1673151590217,0.35303969,16949.0,16948.0,1.78086013]
[1673151590890,0.85303969,16949.0,16948.0,1.74758113]
[1673151591145,0.35303969,16949.0,16948.0,1.74758113]
[1673151591652,0.85303969,16949.0,16948.0,1.71429613]
[1673151591914,0.35303969,16949.0,16948.0,1.71429613]
[1673151592168,0.35303969,16949.0,16948.0,1.68101813]
[1673151592369,0.35303969,16949.0,16948.0,1.64774913]
[1673151595092,0.96083169,16949.0,16948.0,1.64774913]
[1673151596298,0.35303969,16949.0,16948.0,1.64774913]
[1673151599795,0.96083169,16949.0,16948.0,1.64774913]
[1673151600046,0.35303969,16949.0,16948.0,1.64774913]
[1673151601795,0.96083169,16949.0,16948.0,1.64774913]
[1673151602131,0.35303969,16949.0,16948.0,1.64774913]
[1673151603084,0.79574804,16949.0,16948.0,1.64774913]
[1673151603602,0.35303969,16949.0,16948.0,1.64774913]
[1673151603819,0.79574927,16949.0,16948.0,1.64774913]
[1673151611182,0.7957605,16949.0,16948.0,1.64774913]
[1673151611679,0.35303969,16949.0,16948.0,1.64774913]
[1673151614229,0.35303969,16949.0,16948.0,1.67456913]
[1673151614745,0.79576289,16949.0,16948.0,1.67456913]
[1673151614999,0.79576353,16949.0,16948.0,1.67456913]
[1673151615263,0.35303969,16949.0,16948.0,1.67456913]
[1673151615516,0.79576356,16949.0,16948.0,1.67456913]
[1673151615773,0.35303969,16949.0,16948.0,1.67456913]
[1673151617338,0.79576043,16949.0,16948.0,1.67456913]
[1673151620901,0.35303969,16949.0,16948.0,1.67456913]
[1673151624078,0.79575343,16949.0,16948.0,1.67456913]
[1673151625320,1.23846995,16949.0,16948.0,1.67456913]
[1673151627638,0.79575343,16949.0,16948.0,1.67456913]
[1673151628137,1.23847663,16949.0,16948.0,1.67456913]
[1673151633857,1.23848565,16949.0,16948.0,1.67456913]
[1673151634158,0.79575343,16949.0,16948.0,1.67456913]
[1673151640589,1.23854195,16949.0,16948.0,1.67456913]
[1673151645572,1.23832572,16949.0,16948.0,1.67456913]
[1673151655411,1.23534846,16949.0,16948.0,1.67456913]
[1673151662909,0.79255994,16949.0,16948.0,1.67456913]
[1673151663870,1.23532266,16949.0,16948.0,1.67456913]
[1673151664576,0.79255994,16949.0,16948.0,1.67456913]
[1673151664800,1.23532488,16949.0,16948.0,1.67456913]
[1673151665062,0.79255994,16949.0,16948.0,1.67456913]
[1673151670726,1.23531426,16949.0,16948.0,1.67456913]
[1673151670953,0.79255994,16949.0,16948.0,1.67456913]
[1673151671823,0.3498462,16949.0,16948.0,1.67456913]
[1673151673303,0.79259931,16949.0,16948.0,1.67456913]
[1673151674268,0.3498462,16949.0,16948.0,1.67456913]
[1673151677100,0.8498462,16949.0,16948.0,1.67445538]
[1673151677367,0.3498462,16949.0,16948.0,1.67445538]
[1673151679037,0.79259444,16949.0,16948.0,1.67445538]
[1673151680792,0.79259444,16949.0,16948.0,2.12663558]
[1673151681047,0.62710899,16949.0,16948.0,3.01667558]
[1673151681296,1.06985768,16949.0,16948.0,3.01667558]
[1673151682073,0.80422392,16949.0,16948.0,3.01667558]
[1673151682326,1.0698594,16949.0,16948.0,3.01667558]
[1673151682554,0.62711116,16949.0,16948.0,3.01667558]
[1673151685572,0.80413779,16949.0,16948.0,3.01667558]
[1673151685854,0.62711116,16949.0,16948.0,3.01667558]
[1673151686600,0.80411681,16949.0,16948.0,3.01667558]
[1673151687567,0.62711116,16949.0,16948.0,3.01667558]
[1673151687826,0.80411384,16949.0,16948.0,3.01667558]
[1673151688571,0.80410259,16949.0,16948.0,3.01667558]
[1673151689283,0.44991616,16949.0,16948.0,3.01667558]
[1673151691234,0.80410259,16949.0,16948.0,3.01667558]
[1673151691684,0.62711116,16949.0,16948.0,2.71667558]
[1673151692886,0.62711116,16949.0,16948.0,3.01667558]
[1673151694537,0.62711116,16949.0,16948.0,2.71667558]
[1673151694753,0.62711116,16949.0,16948.0,3.01667558]
[1673151696474,0.62711116,16949.0,16948.0,2.71667558]
[1673151696716,0.62711116,16949.0,16948.0,3.01667558]
[1673151696940,0.62711116,16949.0,16948.0,2.71667558]
[1673151697198,0.62711116,16949.0,16948.0,3.01667558]
[1673151697441,0.62711116,16949.0,16948.0,2.26449538]
[1673151697652,0.62693827,16949.0,16948.0,1.67445538]
[1673151698151,0.80422392,16949.0,16948.0,1.67445538]
[1673151698648,1.13815235,16949.0,16948.0,1.67445538]
[1673151698878,0.80422392,16949.0,16948.0,1.67445538]
[1673151699391,1.06968848,16949.0,16948.0,1.67445538]
[1673151700109,1.138147,16949.0,16948.0,1.67445538]
[1673151700365,0.80422392,16949.0,16948.0,1.67445538]
[1673151700623,1.13815535,16949.0,16948.0,1.67445538]
[1673151704103,0.80422392,16949.0,16948.0,1.67445538]
[1673151704344,1.13850522,16949.0,16948.0,1.67445538]
[1673151711678,0.78431879,16949.0,16948.0,1.67445538]
[1673151715244,1.1383218,16949.0,16948.0,1.67445538]
[1673151715748,0.78431879,16949.0,16948.0,1.67445538]
[1673151716497,1.138324,16949.0,16948.0,1.67445538]
[1673151718604,0.78431879,16949.0,16948.0,1.67445538]
[1673151719316,1.13833751,16949.0,16948.0,1.67445538]
[1673151720334,1.13833751,16949.0,16948.0,1.66945538]
[1673151722973,0.78431879,16949.0,16948.0,1.66945538]
[1673151724006,1.13833259,16949.0,16948.0,1.66945538]
[1673151724502,0.78431879,16949.0,16948.0,1.66945538]
[1673151740122,0.78431879,16949.0,16948.0,2.12163558]
[1673151740670,0.78431879,16949.0,16948.0,2.72942758]
[1673151741170,0.78431879,16949.0,16948.0,3.31946758]
[1673151741418,0.78431879,16949.0,16948.0,2.86728738]
[1673151741871,0.78431879,16949.0,16948.0,2.25949538]
[1673151742147,1.13850862,16949.0,16948.0,2.25949538]
[1673151742399,0.78342626,16949.0,16948.0,2.25949538]
[1673151742642,1.13760576,16949.0,16948.0,2.25949538]
[1673151743397,0.78342626,16949.0,16948.0,2.25949538]
[1673151745831,1.13760061,16949.0,16948.0,2.25949538]
[1673151746084,0.78342626,16949.0,16948.0,2.25949538]
[1673151746578,1.13759286,16949.0,16948.0,2.25949538]
[1673151746805,0.78342626,16949.0,16948.0,2.25949538]
[1673151750745,1.13758501,16949.0,16948.0,2.25949538]
[1673151750999,0.78342626,16949.0,16948.0,2.25949538]
[1673151751293,1.13758488,16949.0,16948.0,2.25949538]
[1673151766597,1.13758488,16949.0,16948.0,2.25941688]
[1673151770498,0.78342626,16949.0,16948.0,2.25941688]
[1673151771720,0.78342626,16949.0,16948.0,1.66937688]
[1673151774601,0.78342626,16949.0,16948.0,1.66950683]
[1673151774838,0.78342626,16949.0,16948.0,1.66937688]
[1673151783689,0.34067802,16949.0,16948.0,1.66937688]
[1673151783953,0.94847002,16949.0,16948.0,1.66937688]
[1673151784207,0.34067802,16949.0,16948.0,1.66937688]
[1673151789765,0.78330765,16949.0,16948.0,1.66937688]
[1673151790793,0.78330765,16949.0,16948.0,1.58070945]
[1673151791051,0.78330765,16949.0,16948.0,1.67392637]
[1673151793092,0.34067802,16949.0,16948.0,1.67392637]
[1673151793576,0.78329482,16949.0,16948.0,1.67392637]
[1673151814285,1.13746321,16949.0,16948.0,2.12610657]
[1673151814578,1.13746321,16949.0,16948.0,2.73389857]
[1673151818171,1.13725092,16949.0,16948.0,2.73389857]
[1673151823003,1.13725092,16949.0,16948.0,2.12610657]
[1673151825971,1.13725092,16949.0,16948.0,2.73389857]
[1673151826496,1.13725092,16949.0,16948.0,2.12610657]
[1673151827206,1.13725092,16949.0,16948.0,1.67392637]
[1673151828987,0.78308253,16949.0,16948.0,1.67392637]
[1673151829218,1.13716807,16949.0,16948.0,1.67392637]
[1673151829597,0.78308253,16949.0,16948.0,1.67392637]
[1673151829840,1.13716785,16949.0,16948.0,1.67392637]
[1673151832535,0.78308253,16949.0,16948.0,1.67392637]
[1673151836743,0.78308253,16949.0,16948.0,2.26396637]
[1673151837266,0.78308253,16949.0,16948.0,1.67392637]
[1673151839757,0.78308253,16949.0,16948.0,1.64892637]
[1673151844982,0.78308253,16949.0,16948.0,1.62392637]
[1673151847302,0.78308253,16949.0,16948.0,1.59892637]
[1673151850533,0.78308253,16949.0,16948.0,1.57392637]
[1673151852995,1.13727288,16949.0,16948.0,2.61614657]
[1673151853316,1.13727288,16949.0,16948.0,3.22393857]
[1673151853814,1.57998924,16949.0,16948.0,3.52393857]
[1673151854079,1.57998924,16949.0,16948.0,3.22393857]
[1673151854300,1.57998924,16949.0,16948.0,2.61614657]
[1673151856642,1.22579889,16949.0,16948.0,2.16396637]
[1673151857406,1.57997008,16949.0,16948.0,2.16396637]
[1673151857861,1.22579889,16949.0,16948.0,2.13896637]
[1673151861116,1.22579889,16949.0,16948.0,2.11396637]
[1673151862691,0.78318209,16949.0,16948.0,2.11396637]
[1673151863387,0.78318209,16949.0,16948.0,2.08896637]
[1673151866129,0.78318209,16949.0,16948.0,2.06396637]
[1673151872899,0.78318209,16949.0,16948.0,2.03896637]
[1673151875101,0.78318209,16949.0,16948.0,2.01396637]
[1673151877651,1.13735179,16949.0,16948.0,2.01396637]
[1673151878382,1.13735275,16949.0,16948.0,2.01396637]
[1673151882425,1.13735275,16949.0,16948.0,2.31396637]
[1673151882921,1.13735275,16949.0,16948.0,2.01396637]
[1673151883404,1.13735275,16949.0,16948.0,2.31396637]
[1673151884722,1.13735275,16949.0,16948.0,2.01396637]
[1673151887014,0.78318209,16949.0,16948.0,2.01396637]
[1673151891506,0.78318209,16949.0,16948.0,1.42392637]
[1673151903039,0.34046573,16949.0,16948.0,1.42392637]
[1673151903544,0.78313103,16949.0,16948.0,1.42392637]
[1673151903757,0.34046573,16949.0,16948.0,1.42392637]
[1673151904524,0.78313087,16949.0,16948.0,1.42392637]
[1673151916283,0.78313087,16949.0,16948.0,2.01396637]
[1673151927016,0.78313087,16949.0,16948.0,2.62175837]
[1673151931299,0.34046573,16949.0,16948.0,2.62175837]
[1673151931566,0.34046573,16949.0,16948.0,2.01396637]
[1673151932069,0.78323382,16949.0,16948.0,2.01396637]
[1673151932290,0.34046573,16949.0,16948.0,2.01396637]
[1673151932566,0.7832338,16949.0,16948.0,2.01396637]
[1673151933496,0.34046573,16949.0,16948.0,2.01396637]
[1673151935203,0.78322934,16949.0,16948.0,2.01396637]
[1673151935672,0.78322934,16949.0,16948.0,2.62175837]
[1673151936187,0.78322934,16949.0,16948.0,2.01396637]
[1673151945313,0.78322934,16949.0,16948.0,1.42392637]
[1673151948786,0.78322934,16949.0,16948.0,0.24387037]
[1673151949015,0.78322934,16949.0,16948.0,1.42392637]
[1673151949263,0.34046573,16949.0,16948.0,1.42392637]
[1673151953896,0.34046573,16949.0,16948.0,2.00896637]
[1673151955580,0.34046573,16949.0,16948.0,1.41892637]
[1673151963985,0.34046573,16949.0,16948.0,1.41392637]
[1673151967627,0.78321354,16949.0,16948.0,1.41392637]
[1673151971849,1.13740334,16949.0,16948.0,2.41414594]
[1673151972112,1.13740334,16949.0,16948.0,2.61175837]
[1673151973175,1.13740334,16949.0,16948.0,2.00396637]
[1673151974819,1.13737551,16949.0,16948.0,2.00396637]
[1673151975084,0.78321354,16949.0,16948.0,2.00396637]
[1673151976067,1.13736643,16949.0,16948.0,2.00396637]
[1673151980230,0.78321354,16949.0,16948.0,2.00396637]
[1673151981021,1.13734577,16949.0,16948.0,2.00396637]
[1673151981545,0.78321354,16949.0,16948.0,2.00396637]
[1673151982088,1.13734454,16949.0,16948.0,2.00396637]
[1673151982609,0.78321354,16949.0,16948.0,2.00396637]
[1673151982872,1.13734276,16949.0,16948.0,2.61175837]
[1673151983384,1.13734276,16949.0,16948.0,2.00396637]
[1673151983650,0.78321354,16949.0,16948.0,1.41392637]
[1673151984429,0.78321354,16949.0,16948.0,2.00396637]
[1673151986192,0.78321354,16949.0,16948.0,1.41392637]
[1673151996284,0.78321354,16949.0,16948.0,1.41407529]
[1673151996539,0.78321354,16949.0,16948.0,2.00411529]
[1673151997011,0.78321354,16949.0,16948.0,2.00396637]
[1673151997498,0.78321354,16949.0,16948.0,2.00411529]
[1673151998492,0.78321354,16949.0,16948.0,2.61190729]
[1673152000037,0.78321354,16949.0,16948.0,2.00411529]
[1673152000919,0.78321354,16949.0,16948.0,2.00396637]
[1673152005439,0.78321354,16949.0,16948.0,1.41392637]
[1673152005695,0.34046573,16949.0,16948.0,1.41392637]
[1673152009695,0.78314862,16949.0,16948.0,1.41392637]
[1673152010454,0.78314862,16949.0,16948.0,1.86606003]
[1673152010716,0.78314862,16949.0,16948.0,2.45610003]
[1673152010979,0.78314862,16949.0,16948.0,2.61175837]
[1673152011282,0.78314862,16949.0,16948.0,2.00396637]
[1673152019825,0.78314862,16949.0,16948.0,2.61175837]
[1673152022729,0.78314862,16949.0,16948.0,2.02171837]
[1673152022990,0.78314862,16949.0,16948.0,1.41392637]
[1673152024674,0.78314862,16949.0,16948.0,2.00396637]
[1673152025952,0.34046573,16949.0,16948.0,2.00396637]
[1673152026165,0.78317783,16949.0,16948.0,2.00396637]
[1673152030199,0.34046573,16949.0,16948.0,2.00396637]
[1673152030882,0.78318674,16949.0,16948.0,2.00396637]
[1673152032873,0.34046573,16949.0,16948.0,2.00396637]
[1673152033380,0.78318125,16949.0,16948.0,2.00396637]
[1673152034353,0.34046573,16949.0,16948.0,2.00396637]
[1673152034584,0.78318224,16949.0,16948.0,2.00396637]
[1673152035956,1.39097424,16949.0,16948.0,2.00396637]
[1673152036207,0.78318224,16949.0,16948.0,2.00396637]
[1673152036737,1.39097424,16949.0,16948.0,2.00396637]
[1673152036991,0.78318224,16949.0,16948.0,2.00396637]
[1673152037240,0.34046573,16949.0,16948.0,2.00396637]
[1673152037506,0.78318076,16949.0,16948.0,2.00396637]
[1673152038574,0.34046573,16949.0,16948.0,2.00396637]
[1673152039370,0.94825773,16949.0,16948.0,2.00396637]
[1673152040233,0.34046573,16949.0,16948.0,2.00396637]
[1673152040720,0.78318124,16949.0,16948.0,2.00396637]
[1673152041462,0.34046573,16949.0,16948.0,2.00396637]
[1673152042994,0.78317886,16949.0,16948.0,2.00396637]
[1673152047520,0.34046573,16949.0,16948.0,2.00396637]
[1673152048713,0.78319286,16949.0,16948.0,2.00396637]
[1673152049484,0.34046573,16949.0,16948.0,2.00396637]
[1673152084151,0.34046573,16949.0,16948.0,2.00389073]
[1673152085860,0.34046573,16949.0,16948.0,1.41385073]
[1673152090821,0.34046573,16949.0,16948.0,1.32063381]
[1673152091333,0.34046573,16949.0,16948.0,1.41518552]
[1673152119419,0.34046573,16949.0,16948.0,1.86736572]
[1673152119672,0.34046573,16949.0,16948.0,2.47515772]
[1673152120162,0.34046573,16949.0,16948.0,1.41518552]
[1673152120968,0.34046573,16949.0,16948.0,2.00522552]
[1673152121215,0.34046573,16949.0,16948.0,2.61301752]
[1673152123316,0.78321313,16949.0,16948.0,2.61301752]
[1673152123848,1.13738404,16949.0,16948.0,3.06519772]
[1673152124094,0.78321313,16949.0,16948.0,3.06519772]
[1673152125137,0.78321313,16949.0,16948.0,2.45740572]
[1673152125405,0.78321313,16949.0,16948.0,3.06519772]
[1673152126123,0.78311706,16949.0,16948.0,3.06519772]
[1673152130934,1.13726364,16949.0,16948.0,3.06519772]
[1673152131185,0.78311706,16949.0,16948.0,3.06519772]
[1673152131703,1.13725567,16949.0,16948.0,3.06519772]
[1673152133184,1.13725567,16949.0,16948.0,2.45740572]
[1673152133678,1.13725567,16949.0,16948.0,3.06519772]
[1673152134201,1.13725567,16949.0,16948.0,2.45740572]
[1673152134681,1.13725567,16949.0,16948.0,3.06519772]
[1673152136721,1.13725567,16949.0,16948.0,2.45740572]
[1673152138016,1.13725567,16949.0,16948.0,3.06519772]
[1673152139971,1.13725567,16949.0,16948.0,2.45740572]
[1673152140726,1.13725567,16949.0,16948.0,3.06519772]
[1673152141232,1.13725567,16949.0,16948.0,2.45740572]
[1673152142193,1.13725567,16949.0,16948.0,3.06519772]
[1673152142696,0.80297437,16949.0,16948.0,3.06519772]
[1673152143768,1.06853001,16949.0,16948.0,3.06519772]
[1673152144665,1.06853001,16949.0,16948.0,2.45740572]
[1673152146382,1.06853001,16949.0,16948.0,3.06519772]
[1673152147460,1.06739081,16949.0,16948.0,2.45740572]
[1673152148173,0.62464341,16949.0,16948.0,3.06519772]
[1673152149081,1.06739081,16949.0,16948.0,2.45740572]
[1673152149749,0.62464341,16949.0,16948.0,3.06519772]
[1673152149935,1.06739081,16949.0,16948.0,3.06519772]
[1673152150173,0.62464341,16949.0,16948.0,3.06519772]
[1673152151502,1.06739081,16949.0,16948.0,2.45740572]
[1673152151993,1.06739081,16949.0,16948.0,3.06519772]
[1673152153251,1.06739081,16949.0,16948.0,2.45740572]
[1673152153505,0.80183517,16949.0,16948.0,2.45740572]
[1673152153751,0.80183517,16949.0,16948.0,3.06519772]
[1673152153971,1.09967949,16949.0,16948.0,3.06519772]
[1673152154191,1.09967949,16949.0,16948.0,2.45740572]
[1673152154460,0.80183517,16949.0,16948.0,2.45740572]
[1673152154727,1.09967984,16949.0,16948.0,2.61301752]
[1673152155005,1.09967984,16949.0,16948.0,2.00522552]
[1673152155285,1.09967984,16949.0,16948.0,2.45740572]
[1673152155536,1.09967984,16949.0,16948.0,2.00522552]
[1673152155776,0.74554123,16949.0,16948.0,2.00522552]
[1673152163879,0.83362121,16949.0,16948.0,1.89146771]
[1673152164128,0.91058583,16949.0,16948.0,1.89146771]
[1673152164373,0.30279383,16949.0,16948.0,1.89146771]
[1673152167219,0.74537501,16949.0,16948.0,1.89146771]
[1673152167963,0.30279383,16949.0,16948.0,1.89146771]
[1673152168183,0.74536879,16949.0,16948.0,1.89146771]
[1673152170232,0.74536879,16949.0,16948.0,1.30142771]
[1673152170493,0.30279383,16949.0,16948.0,1.30142771]
[1673152171246,0.74533091,16949.0,16948.0,1.30142771]
[1673152171799,0.74533091,16949.0,16948.0,1.30136657]
[1673152173795,0.74533091,16949.0,16948.0,1.75354677]
[1673152174069,1.09933288,16949.0,16948.0,2.95137877]
[1673152174337,1.09933344,16949.0,16948.0,2.95137877]
[1673152174558,0.74533091,16949.0,16948.0,1.89140657]
[1673152191474,0.74533091,16949.0,16948.0,2.34358677]
[1673152191726,0.74533091,16949.0,16948.0,2.95137877]
[1673152191940,0.74533091,16949.0,16948.0,2.45254377]
[1673152192230,0.74533091,16949.0,16948.0,1.89140657]
[1673152194021,0.30279383,16949.0,16948.0,1.89140657]
[1673152194291,0.74547065,16949.0,16948.0,1.89140657]
[1673152195044,0.30279383,16949.0,16948.0,1.89140657]
[1673152197477,0.80279383,16949.0,16948.0,1.89129115]
[1673152197709,0.30279383,16949.0,16948.0,1.89129115]
[1673152201570,0.30272693,16949.0,16948.0,1.89129115]
[1673152202415,0.30038318,16949.0,16948.0,1.89129115]
[1673152206505,0.30038318,16949.0,16948.0,1.30125115]
[1673152208396,0.83121056,16949.0,16948.0,1.30125115]
[1673152209621,0.30038318,16949.0,16948.0,1.30125115]
[1673152209876,0.83121056,16949.0,16948.0,1.30125115]
[1673152210675,0.30038318,16949.0,16948.0,1.30125115]
[1673152211590,0.30038318,16949.0,16948.0,1.89129115]
[1673152212856,0.30038318,16949.0,16948.0,1.30125115]
[1673152220479,0.30038318,16949.0,16948.0,1.75343135]
[1673152220732,0.74302528,16949.0,16948.0,2.95126335]
[1673152221770,0.74302528,16949.0,16948.0,2.34347135]
[1673152222264,0.74302528,16949.0,16948.0,1.89129115]
[1673152222515,0.74302301,16949.0,16948.0,1.89129115]
[1673152222775,0.30038318,16949.0,16948.0,1.89129115]
[1673152223106,0.74302301,16949.0,16948.0,1.89129115]
[1673152223997,0.74302301,16949.0,16948.0,2.34347135]
[1673152224244,0.74302301,16949.0,16948.0,1.89121834]
[1673152225102,0.74291823,16949.0,16948.0,1.89121834]
[1673152225593,0.74291823,16949.0,16948.0,2.34339854]
[1673152225843,0.74291823,16949.0,16948.0,1.89121834]
[1673152226977,0.3002784,16949.0,16948.0,1.89121834]
[1673152227233,0.74293062,16949.0,16948.0,1.89121834]
[1673152227458,0.74293587,16949.0,16948.0,1.89121834]
[1673152228230,0.3002784,16949.0,16948.0,1.89121834]
[1673152228736,0.74293577,16949.0,16948.0,1.89121834]
[1673152229681,0.74293577,16949.0,16948.0,2.34339854]
[1673152229901,0.74293577,16949.0,16948.0,2.95119054]
[1673152233093,1.09703085,16949.0,16948.0,2.95119054]
[1673152233608,1.09702991,16949.0,16948.0,2.95119054]
[1673152234125,1.09702991,16949.0,16948.0,3.45670546]
[1673152237718,0.79918524,16949.0,16948.0,3.45670546]
[1673152238976,1.06469096,16949.0,16948.0,3.45670546]
[1673152241162,0.62203359,16949.0,16948.0,3.45670546]
[1673152253436,1.06469096,16949.0,16948.0,3.45663594]
[1673152253684,0.62203359,16949.0,16948.0,3.45663594]
[1673152254222,1.06469096,16949.0,16948.0,3.45663594]
[1673152254446,0.62203359,16949.0,16948.0,3.45663594]
[1673152255967,1.06469096,16949.0,16948.0,3.45663594]
[1673152256219,0.62203359,16949.0,16948.0,3.45663594]
[1673152256442,1.06469096,16949.0,16948.0,3.45663594]
[1673152256687,0.62203359,16949.0,16948.0,3.45663594]
[1673152257950,1.06469096,16949.0,16948.0,3.45663594]
[1673152259221,0.62203359,16949.0,16948.0,3.45663594]
[1673152259454,1.06469096,16949.0,16948.0,3.45663594]
[1673152260172,0.79918524,16949.0,16948.0,3.45663594]
[1673152260436,1.06471309,16949.0,16948.0,3.45663594]
[1673152260673,0.79918524,16949.0,16948.0,3.45663594]
[1673152261874,1.06472022,16949.0,16948.0,3.45663594]
[1673152262025,0.62206285,16949.0,16948.0,3.45663594]
[1673152262275,1.06472022,16949.0,16948.0,3.45663594]
[1673152263596,1.06473307,16949.0,16948.0,3.45663594]
[1673152263844,0.79918524,16949.0,16948.0,3.45663594]
[1673152265584,1.12019854,16949.0,16948.0,3.45663594]
[1673152267291,1.12019854,16949.0,16948.0,3.00445574]
[1673152267506,1.12019854,16949.0,16948.0,2.39666374]
[1673152267750,1.12019854,16949.0,16948.0,2.84884394]
[1673152268414,1.12019854,16949.0,16948.0,2.39666374]
[1673152269071,0.7661044,16949.0,16948.0,2.39666374]
[1673152269320,0.7661044,16949.0,16948.0,2.84884394]
[1673152269571,1.12027712,16949.0,16948.0,2.84884394]
[1673152270034,1.12027712,16949.0,16948.0,2.39666374]
[1673152270282,0.7661044,16949.0,16948.0,2.39666374]
[1673152278819,0.7611044,16949.0,16948.0,2.39666374]
[1673152280805,0.3210133,16949.0,16948.0,2.39666374]
[1673152284077,0.3210133,16949.0,16948.0,1.80662374]
[1673152285751,0.76359984,16949.0,16948.0,1.80662374]
[1673152301502,0.76359984,16949.0,16948.0,1.80651102]
[1673152308065,0.3210133,16949.0,16948.0,1.80651102]
[1673152313302,0.3210133,16949.0,16948.0,2.25869122]
[1673152313815,0.76380659,16949.0,16948.0,2.84873122]
[1673152314068,0.76380659,16949.0,16948.0,2.39655102]
[1673152314333,0.3210133,16949.0,16948.0,2.39655102]
[1673152318206,0.3210133,16949.0,16948.0,1.80651102]
[1673152318469,0.85184068,16949.0,16948.0,1.80651102]
[1673152321942,0.85184068,16949.0,16948.0,1.80641898]
[1673152328380,0.3210133,16949.0,16948.0,1.80641898]
[1673152328909,0.32092313,16949.0,16948.0,1.80641898]
[1673152347629,0.85175051,16949.0,16948.0,1.80641898]
[1673152347871,0.32092313,16949.0,16948.0,1.80641898]
[1673152350251,0.85175051,16949.0,16948.0,1.80641898]
[1673152352619,1.45954251,16949.0,16948.0,1.80633063]
[1673152353394,0.85175051,16949.0,16948.0,1.80633063]
[1673152361485,1.45954251,16949.0,16948.0,1.80633063]
[1673152361732,0.85175051,16949.0,16948.0,1.80633063]
[1673152362751,0.85175051,16949.0,16948.0,1.30081571]
[1673152372915,0.85175051,16949.0,16948.0,1.30069823]
[1673152384830,1.45954251,16949.0,16948.0,1.30069823]
[1673152385347,0.85175051,16949.0,16948.0,1.30069823]
[1673152390625,0.85175051,16949.0,16948.0,1.20614652]
[1673152391508,0.85175051,16949.0,16948.0,1.31033325]
[1673152394505,0.85175051,16949.0,16948.0,1.31022532]
[1673152407792,1.45954251,16949.0,16948.0,1.31022532]
[1673152409818,0.85175051,16949.0,16948.0,1.31022532]
[1673152412072,1.45954251,16949.0,16948.0,1.31022532]
[1673152412819,0.85175051,16949.0,16948.0,1.31022532]
[1673152416876,0.85175051,16949.0,16948.0,1.31012375]
[1673152418176,0.85175051,16949.0,16948.0,1.82955077]
[1673152418708,0.32092313,16949.0,16948.0,2.88952297]
[1673152420236,0.32092313,16949.0,16948.0,1.82955077]
[1673152422826,1.11740149,16949.0,16948.0,2.28173097]
[1673152423810,1.11740149,16949.0,16948.0,2.87177097]
[1673152424564,1.11731889,16949.0,16948.0,2.87177097]
[1673152424813,0.76341111,16949.0,16948.0,2.28173097]
[1673152426568,1.11726804,16949.0,16948.0,2.87177097]
[1673152426839,0.76341111,16949.0,16948.0,2.87177097]
[1673152427941,1.11726358,16949.0,16948.0,2.87177097]
[1673152433132,0.61914987,16949.0,16948.0,3.47956297]
[1673152433639,0.61914987,16949.0,16948.0,2.87177097]
[1673152440191,0.61914987,16949.0,16948.0,3.47956297]
[1673152441375,0.61914987,16949.0,16948.0,3.02738277]
[1673152441640,0.61908277,16949.0,16948.0,2.41959077]
[1673152441889,0.79634045,16949.0,16948.0,2.41959077]